bitfinex-derivatives/quotes_SOLF0:USTF0_20241015
["timestamp","ask_amount","ask_price","bid_price","bid_amount"]
[1728995503339,0.99816373,153.31,153.24,25.15]
[1728995503535,5.32,153.32,153.29,3.2621]
[1728995503736,3.2615,153.33,153.29,3.2621]
[1728995503938,0.99810989,153.32,153.29,3.2621]
[1728995504134,0.99810989,153.32,153.3,3.2619]
[1728995504437,8.58539917,153.38,153.26,26.5714]
[1728995504639,3.2609,153.36,153.32,3.2615]
[1728995504841,0.99787513,153.35,153.32,3.2615]
[1728995505042,3.2609,153.36,153.32,3.2615]
[1728995505238,5.32,153.38,153.29,30.47]
[1728995505438,0.99774941,153.37,153.29,30.47]
[1728995505946,3.2609,153.36,153.32,3.2614]
[1728995506242,3.2609,153.36,153.29,30.47]
[1728995506449,3.2607,153.37,153.32,3.2615]
[1728995507543,5.32,153.38,153.32,3.2615]
[1728995507738,3.2608,153.36,153.32,3.2615]
[1728995507933,4.70266363,153.41,153.29,30.47]
[1728995508140,6.31774919,153.4,153.31,3.2617]
[1728995508344,0.99774919,153.39,153.29,30.47]
[1728995508647,5.32,153.4,153.29,30.47]
[1728995508948,3.2607,153.37,153.29,30.47]
[1728995509243,3.2607,153.37,153.33,3.2612]
[1728995509447,3.2607,153.37,153.29,30.47]
[1728995509647,4.70266363,153.41,153.29,30.47]
[1728995509841,10.02266363,153.41,153.29,33.70056703]
[1728995510042,3.2604,153.38,153.29,33.70056703]
[1728995510546,10.02266363,153.41,153.29,33.70056703]
[1728995510847,3.2604,153.38,153.29,33.70056703]
[1728995511351,3.2604,153.38,153.34,3.261]
[1728995511646,3.2608,153.36,153.29,30.47]
[1728995511848,3.2608,153.36,153.32,3.2614]
[1728995512148,25.15,153.4,153.3,5.32]
[1728995512350,10.02266363,153.41,153.34,3.261]
[1728995512646,10.02266363,153.41,153.31,25.15]
[1728995512846,3.2603,153.38,153.34,3.261]
[1728995513843,3.2603,153.38,153.35,3.2609]
[1728995514041,3.2601,153.4,153.32,4.0615]
[1728995514440,3.2601,153.4,153.36,3.2606]
[1728995514641,8.60226363,153.41,153.32,4.0615]
[1728995514837,3.2602,153.39,153.36,3.2607]
[1728995515144,8.60226363,153.41,153.32,4.0615]
[1728995515546,3.2605,153.38,153.32,4.0615]
[1728995515848,8.60226363,153.41,153.32,4.0615]
[1728995516448,3.2602,153.39,153.36,3.2607]
[1728995517646,3.26,153.4,153.38,3.2603]
[1728995517851,5.32,153.43,153.38,3.2603]
[1728995518150,3.2598,153.41,153.38,3.2603]
[1728995518348,3.18782344,153.43,153.35,5.32]
[1728995518542,3.2599,153.4,153.35,5.32]
[1728995518840,6.59487886,153.4,153.35,5.32]
[1728995519041,3.26972147,153.4,153.35,5.32]
[1728995519248,5.32,153.43,153.35,5.32]
[1728995519452,26.14742902,153.42,153.34,5.32]
[1728995519638,3.2605,153.37,153.32,9.3815]
[1728995519844,25.15,153.42,153.32,9.3815]
[1728995520036,0.99750143,153.41,153.35,3.2608]
[1728995520236,3.2605,153.38,153.32,9.3815]
[1728995520448,25.15,153.42,153.32,9.3815]
[1728995520647,0.99751144,153.41,153.35,3.2609]
[1728995521054,25.15,153.42,153.35,3.2609]
[1728995521245,0.99751665,153.41,153.35,3.2609]
[1728995521745,3.2605,153.37,153.35,3.2609]
[1728995522144,3.2603,153.39,153.36,3.2607]
[1728995522342,8.58973333,153.43,153.36,3.2607]
[1728995522547,0.99751075,153.42,153.36,3.2607]
[1728995522755,3.2602,153.39,153.36,3.2607]
[1728995523139,8.58973333,153.43,153.36,3.2607]
[1728995523442,3.2603,153.39,153.36,3.2607]
[1728995523639,3.2603,153.39,153.32,9.3815]
[1728995524252,8.58973333,153.43,153.32,9.3815]
[1728995524643,3.26973333,153.43,153.32,9.3815]
[1728995524843,5.32,153.43,153.38,3.2601]
[1728995525154,8.57449993,153.43,153.38,3.2601]
[1728995525357,3.2597,153.41,153.39,3.26]
[1728995526149,3.25449993,153.43,153.32,9.3815]
[1728995526349,3.2593,153.43,153.41,3.2597]
[1728995526656,3.2593,153.43,153.35,25.15]
[1728995526657,3.22744423,153.42,153.36,5.32]
[1728995526849,3.22744423,153.42,153.41,3.2597]
[1728995527051,3.22744423,153.42,153.36,5.32]
[1728995527251,25.15,153.48,153.41,3.26]
[1728995527446,6.31715052,153.46,153.41,3.26]
[1728995527647,3.2596,153.43,153.36,5.32]
[1728995527846,3.2596,153.43,153.4,3.2601]
[1728995528245,15.66,153.44,153.35,15.66]
[1728995528449,8.53831149,153.46,153.32,4.0615]
[1728995528450,15.66,153.4,153.32,9.3815]
[1728995528650,0.99764521,153.39,153.32,9.3815]
[1728995528854,3.261,153.37,153.34,3.2614]
[1728995529051,15.66,153.4,153.32,9.3815]
[1728995529249,0.99765405,153.39,153.32,9.3815]
[1728995529451,0.99765405,153.39,153.32,4.0615]
[1728995530057,3.261,153.37,153.34,3.2615]
[1728995530747,6.5565013,153.37,153.34,3.2615]
[1728995531653,3.2955013,153.37,153.33,3.2616]
[1728995531853,3.2608,153.38,153.32,4.0615]
[1728995532352,3.2521008,153.37,153.35,3.2613]
[1728995533556,25.07,153.4,153.32,4.0615]
[1728995533762,0.99765762,153.39,153.32,4.0615]
[1728995534160,0.99765762,153.39,153.33,3.2616]
[1728995534555,0.99765762,153.39,153.32,4.0615]
[1728995534757,0.99765762,153.39,153.32,1.4059]
[1728995535065,25.07,153.38,153.29,5.32]
[1728995535251,3.2614,153.35,153.31,3.2619]
[1728995535457,5.32,153.37,153.28,5.32]
[1728995535652,0.99777721,153.36,153.28,5.32]
[1728995535861,3.2615,153.35,153.28,5.32]
[1728995536568,3.2615,153.35,153.31,3.262]
[1728995537665,3.2615,153.34,153.31,3.262]
[1728995537963,28.28914252,153.38,153.28,5.32]
[1728995537964,3.21914252,153.38,153.28,5.32]
[1728995538166,0.99766594,153.37,153.28,5.32]
[1728995538367,3.2612,153.36,153.28,5.32]
[1728995538867,3.2612,153.36,153.32,3.2618]
[1728995539061,3.2614,153.35,153.28,5.32]
[1728995539467,3.2614,153.35,153.31,3.262]
[1728995539980,6.7396,153.39,153.29,3.2624]
[1728995539981,3.2618,153.33,153.29,3.2624]
[1728995540267,3.31257102,153.33,153.29,3.2624]
[1728995540468,5.32,153.35,153.28,5.32]
[1728995540955,8.61592822,153.35,153.28,5.32]
[1728995541363,3.2618,153.33,153.29,3.2624]
[1728995542465,8.61592822,153.35,153.28,5.32]
[1728995542666,11.87732822,153.35,153.31,3.262]
[1728995542967,26.4896,153.39,153.3,25.07]
[1728995542968,1.4196,153.39,153.3,25.07]
[1728995543166,6.31774236,153.38,153.31,1.4094]
[1728995543373,3.18526543,153.38,153.33,25.07]
[1728995543567,3.2605,153.39,153.35,3.2611]
[1728995543873,3.34358207,153.38,153.33,25.07]
[1728995544071,3.2601,153.41,153.37,3.2608]
[1728995544369,1.3545,153.45,153.35,25.07]
[1728995544568,6.31740053,153.44,153.35,25.07]
[1728995544769,3.26,153.42,153.35,25.07]
[1728995544965,5.32,153.44,153.35,25.07]
[1728995545281,8.5792,153.45,153.41,3.26]
[1728995545471,0.99718104,153.44,153.39,1.4111]
[1728995545772,73.71658266,153.47,153.39,1.4111]
[1728995545773,5.32,153.46,153.39,1.4111]
[1728995545974,4.25638084,153.45,153.41,3.2599]
[1728995546268,5.32,153.47,153.41,3.2599]
[1728995546575,4.25627174,153.46,153.41,3.2599]
[1728995546774,0.99717174,153.45,153.39,2.8017]
[1728995546967,4.25667174,153.44,153.4,3.2602]
[1728995547168,3.2595,153.44,153.4,3.2602]
[1728995548369,3.2599,153.42,153.39,1.4111]
[1728995548672,5.32,153.43,153.33,1.3906]
[1728995548869,3.2609,153.38,153.34,3.2613]
[1728995549075,3.3319411,153.38,153.33,1.3663]
[1728995549369,5.32,153.4,153.33,1.3663]
[1728995549577,3.2611,153.36,153.33,4.6279]
[1728995549873,3.31432559,153.36,153.33,4.6279]
[1728995550073,3.2607,153.38,153.34,3.2614]
[1728995550382,3.26408876,153.38,153.33,1.3663]
[1728995550568,0.99773159,153.37,153.31,5.32]
[1728995550870,3.2615,153.34,153.31,3.2621]
[1728995551263,30.39,153.4,153.29,8.0296]
[1728995551669,0.99775959,153.39,153.29,8.0296]
[1728995551874,3.261,153.37,153.33,3.2616]
[1728995552370,3.31289735,153.39,153.29,8.0296]
[1728995552574,3.31289735,153.39,153.33,25.07]
[1728995552878,3.2603,153.4,153.33,25.07]
[1728995553074,4.33131265,153.39,153.36,3.2609]
[1728995553271,3.33378244,153.39,153.34,1.3877]
[1728995553772,3.33378244,153.39,153.37,3.2607]
[1728995553974,3.2601,153.41,153.34,1.3877]
[1728995554173,0.99745023,153.4,153.34,1.3877]
[1728995554377,0.99745023,153.4,153.37,3.2607]
[1728995554578,0.99745023,153.4,153.34,1.3877]
[1728995554779,3.2601,153.41,153.34,1.3877]
[1728995555076,0.99746121,153.4,153.34,1.3877]
[1728995555478,3.2601,153.41,153.37,3.2607]
[1728995555677,0.99745878,153.4,153.37,3.2607]
[1728995556276,5.32,153.43,153.35,25.07]
[1728995556468,28.40628311,153.47,153.38,25.07]
[1728995556469,0.99737625,153.42,153.38,25.07]
[1728995556779,3.2592,153.45,153.41,3.2599]
[1728995556973,0.99720089,153.44,153.41,3.2599]
[1728995557478,4.21147212,153.44,153.41,3.2599]
[1728995557679,3.21427123,153.44,153.41,3.2599]
[1728995557879,3.2592,153.45,153.41,3.2599]
[1728995558076,0.99714378,153.44,153.41,3.2599]
[1728995558276,3.26137984,153.46,153.4,25.07]
[1728995558484,5.32,153.48,153.41,1.4189]
[1728995558776,4.25586439,153.47,153.42,3.2596]
[1728995558978,0.99696439,153.46,153.41,1.4189]
[1728995559180,8.58137984,153.48,153.41,1.4189]
[1728995559376,4.25585331,153.47,153.43,3.2595]
[1728995559574,3.2589,153.47,153.43,3.2595]
[1728995560176,3.2589,153.47,153.44,3.2592]
[1728995560981,3.2582,153.5,153.47,3.2586]
[1728995561185,0.99677425,153.49,153.44,1.3641]
[1728995561481,5.32,153.52,153.44,1.3641]
[1728995561686,0.99668834,153.51,153.44,1.3641]
[1728995562281,0.99668834,153.51,153.45,30.39]
[1728995562483,6.6283,153.55,153.45,30.39]
[1728995562677,0.99656123,153.54,153.5,3.2581]
[1728995562878,3.2575,153.53,153.45,30.39]
[1728995563080,0.99656123,153.52,153.45,30.39]
[1728995563279,3.2889724,153.56,153.47,25.07]
[1728995563485,0.99646694,153.55,153.48,1.3761]
[1728995563686,0.99646694,153.55,153.5,3.2581]
[1728995563982,3.19412569,153.56,153.49,5.32]
[1728995564182,0.99632595,153.55,153.51,3.2577]
[1728995564383,4.20414634,153.55,153.51,3.2577]
[1728995564583,3.20782039,153.55,153.51,3.2577]
[1728995564878,3.2571,153.55,153.51,3.2577]
[1728995565081,6.45528888,153.55,153.51,3.2577]
[1728995565880,3.19818888,153.55,153.49,5.32]
[1728995566077,5.32,153.57,153.48,1.3761]
[1728995566280,26.06637282,153.56,153.48,1.3761]
[1728995566481,0.99637282,153.55,153.48,1.3761]
[1728995566680,0.99637282,153.55,153.45,25.07]
[1728995566681,0.99637282,153.55,153.46,5.32]
[1728995567385,3.2581,153.51,153.46,5.32]
[1728995567582,5.32,153.53,153.46,5.32]
[1728995567790,5.32,153.53,153.5,3.258]
[1728995568979,5.32,153.53,153.46,5.32]
[1728995569184,8.55143544,153.56,153.46,5.32]
[1728995569375,4.25361568,153.55,153.51,3.2577]
[1728995569580,0.99641568,153.54,153.48,25.07]
[1728995569886,5.32,153.58,153.49,1.3415]
[1728995570079,3.2572,153.55,153.51,3.2578]
[1728995570280,0.99637504,153.54,153.47,5.32]
[1728995570487,33.7041213,153.58,153.47,5.32]
[1728995570683,3.2572,153.54,153.49,3.2582]
[1728995570884,0.99644337,153.53,153.49,3.2582]
[1728995571084,33.7041213,153.58,153.49,3.2582]
[1728995571280,0.99646604,153.57,153.47,5.32]
[1728995571588,0.99646604,153.57,153.5,3.258]
[1728995572286,3.2576,153.53,153.5,3.258]
[1728995573288,3.2577,153.52,153.5,3.258]
[1728995573481,8.6341213,153.58,153.48,25.07]
[1728995573684,0.99644405,153.57,153.48,25.07]
[1728995574084,0.99644405,153.57,153.47,5.32]
[1728995574399,3.2578,153.52,153.47,5.32]
[1728995574584,26.06644405,153.57,153.47,5.32]
[1728995574585,25.07,153.57,153.47,5.32]
[1728995574784,0.99656641,153.56,153.47,5.32]
[1728995574985,3.2581,153.5,153.47,8.5785]
[1728995575286,0.99656641,153.56,153.47,5.32]
[1728995575287,5.32,153.53,153.47,5.32]
[1728995575491,3.2582,153.5,153.47,5.32]
[1728995575687,5.32,153.53,153.48,3.2585]
[1728995576083,3.258,153.51,153.48,3.2585]
[1728995577892,3.258,153.51,153.47,8.5786]
[1728995578689,3.258,153.51,153.48,3.2585]
[1728995579490,8.5776,153.53,153.47,5.32]
[1728995579697,25.07,153.59,153.47,30.39]
[1728995579893,5.32,153.56,153.47,30.39]
[1728995580087,3.2575,153.53,153.47,30.39]
[1728995580291,5.32,153.56,153.47,30.39]
[1728995580793,3.2571,153.55,153.47,30.39]
[1728995580985,5.32,153.56,153.47,30.39]
[1728995581192,0.99641721,153.55,153.47,5.32]
[1728995582189,3.2576,153.53,153.5,3.2581]
[1728995582595,3.2575,153.53,153.5,3.2581]
[1728995582789,5.32,153.56,153.47,5.32]
[1728995582991,5.32,153.56,153.47,30.39]
[1728995583292,4.25361897,153.55,153.52,3.2575]
[1728995583495,3.2572,153.55,153.52,3.2575]
[1728995583697,5.3,153.57,153.51,3.2579]
[1728995583698,3.2572,153.54,153.51,3.2579]
[1728995583998,15.66,153.56,153.51,3.2579]
[1728995584194,0.99648006,153.55,153.51,3.2579]
[1728995584392,3.2574,153.54,153.51,3.2579]
[1728995585196,5.3,153.57,153.49,15.66]
[1728995585398,0.99640984,153.56,153.49,15.66]
[1728995585592,5.3,153.57,153.5,1.3376]
[1728995585799,5.3,153.57,153.53,3.2573]
[1728995585993,3.2569,153.56,153.51,16.9929]
[1728995586297,3.1925231,153.59,153.55,3.2569]
[1728995586500,3.1925231,153.59,153.51,16.9929]
[1728995586501,0.99621396,153.58,153.53,15.66]
[1728995586795,5.3,153.62,153.56,3.2567]
[1728995586996,0.9962044,153.61,153.53,15.66]
[1728995587203,0.9962044,153.61,153.55,15.66]
[1728995587397,0.9962044,153.61,153.58,3.2564]
[1728995587694,3.256,153.6,153.58,3.2564]
[1728995587899,3.256,153.6,153.57,3.2565]
[1728995588103,3.2565,153.58,153.51,23.6271]
[1728995588303,15.66,153.59,153.51,23.6271]
[1728995588504,15.66,153.59,153.54,3.2571]
[1728995588802,15.66,153.6,153.54,3.2571]
[1728995589005,0.99614711,153.59,153.54,3.2571]
[1728995589501,3.2567,153.57,153.54,3.2571]
[1728995590304,3.2567,153.57,153.55,3.257]
[1728995590809,3.2567,153.57,153.54,3.2571]
[1728995591505,6.44688635,153.57,153.54,3.2571]
[1728995592209,3.19018635,153.57,153.51,18.3271]
[1728995592405,3.2572,153.55,153.51,1.3329]
[1728995592603,3.22570528,153.55,153.51,1.3329]
[1728995592807,3.2568,153.56,153.51,4.5906]
[1728995593002,4.18878862,153.55,153.51,4.5906]
[1728995593199,15.66,153.57,153.51,1.3329]
[1728995593504,0.99639847,153.56,153.48,5.3]
[1728995594011,3.2573,153.54,153.48,5.3]
[1728995594205,18.95120349,153.57,153.48,5.3]
[1728995594403,0.9963749,153.56,153.49,15.66]
[1728995594599,0.9963749,153.56,153.52,15.66]
[1728995594804,6.54780349,153.57,153.54,3.2571]
[1728995595005,0.99624079,153.56,153.54,3.2571]
[1728995595308,6.54780349,153.57,153.54,3.2571]
[1728995595509,0.99623843,153.56,153.54,3.2571]
[1728995595810,6.54780349,153.57,153.54,3.2571]
[1728995596012,5.3,153.58,153.53,1.3625]
[1728995596203,0.99622026,153.57,153.55,3.2569]
[1728995596399,0.99622026,153.57,153.53,1.3625]
[1728995596400,4.26416248,153.57,153.53,1.3625]
[1728995596604,0.99622026,153.56,153.53,1.3625]
[1728995597209,5.3,153.58,153.54,3.2571]
[1728995597507,0.99621753,153.57,153.54,3.2571]
[1728995597806,15.66,153.61,153.56,3.2568]
[1728995597807,3.2563,153.59,153.56,3.2568]
[1728995598001,0.99613805,153.58,153.53,18.349]
[1728995598306,0.99613805,153.58,153.56,3.2566]
[1728995598808,3.2563,153.59,153.56,3.2566]
[1728995599011,0.99613765,153.58,153.56,3.2566]
[1728995599210,20.96,153.62,153.53,19.6899]
[1728995599509,3.2567,153.57,153.53,2.689]
[1728995599908,3.2567,153.57,153.55,3.257]
[1728995600107,3.2564,153.58,153.53,2.689]
[1728995600508,15.66,153.6,153.54,3.2571]
[1728995600709,3.2569,153.56,153.53,2.689]
[1728995601312,3.2569,153.56,153.53,5.9463]
[1728995601709,3.29196983,153.57,153.51,5.3]
[1728995601915,15.66,153.54,153.48,1.4175]
[1728995602122,3.2581,153.5,153.45,1.4126]
[1728995602417,3.2581,153.5,153.41,20.96]
[1728995602418,15.66,153.5,153.41,20.96]
[1728995602615,5.3,153.49,153.41,20.96]
[1728995602908,5.3,153.49,153.38,2.8301]
[1728995603109,15.66,153.46,153.38,2.8301]
[1728995603316,0.99687637,153.45,153.38,2.8301]
[1728995603516,3.2597,153.43,153.38,6.0906]
[1728995603811,18.4937,153.48,153.4,15.66]
[1728995604017,0.99671492,153.47,153.4,15.66]
[1728995604512,0.99671492,153.47,153.38,18.4901]
[1728995605109,0.99671492,153.47,153.4,15.66]
[1728995605614,0.99671492,153.47,153.42,15.66]
[1728995605814,5.3,153.49,153.42,25.03]
[1728995606019,6.633,153.53,153.44,25.03]
[1728995606211,0.99670485,153.52,153.49,3.2582]
[1728995606715,0.99670485,153.52,153.5,3.258]
[1728995606918,0.99670485,153.52,153.45,4.1176]
[1728995607113,8.5575,153.53,153.49,3.2582]
[1728995607308,4.25424875,153.52,153.49,3.2582]
[1728995607514,5.3,153.53,153.45,9.4176]
[1728995607921,3.2579,153.51,153.48,3.2585]
[1728995608221,5.3,153.53,153.46,25.03]
[1728995608412,3.33172634,153.57,153.46,25.03]
[1728995608612,3.2576,153.53,153.5,3.2581]
[1728995608817,5.3,153.55,153.46,25.03]
[1728995609014,5.3,153.55,153.49,25.03]
[1728995610019,5.3,153.55,153.52,3.2576]
[1728995611116,5.3,153.55,153.51,3.2578]
[1728995611421,8.557,153.55,153.51,3.2578]
[1728995611916,3.2575,153.53,153.49,3.2582]
[1728995612222,0.99651093,153.52,153.46,5.3]
[1728995612518,3.2578,153.52,153.48,3.2585]
[1728995612723,5.3,153.55,153.46,5.3]
[1728995612924,0.99647753,153.54,153.46,30.33]
[1728995613725,3.2569,153.56,153.52,3.2576]
[1728995613924,0.99631495,153.55,153.52,3.2576]
[1728995614225,0.99631495,153.55,153.53,3.2574]
[1728995614430,1.2976,153.63,153.51,25.03]
[1728995614621,1.2976,153.63,153.52,2.6489]
[1728995614622,6.29625704,153.59,153.52,2.6489]
[1728995614819,4.25275704,153.58,153.54,3.257]
[1728995615125,0.99623754,153.57,153.52,2.6489]
[1728995615324,3.2568,153.56,153.52,5.9064]
[1728995615519,5.3,153.59,153.52,2.6489]
[1728995615713,0.99618589,153.58,153.52,2.6489]
[1728995615915,3.2566,153.57,153.54,3.2572]
[1728995616323,5.3,153.59,153.52,2.6489]
[1728995616521,0.9962183,153.58,153.52,2.6489]
[1728995616716,5.3,153.59,153.52,2.6489]
[1728995617221,3.2561,153.6,153.53,1.3069]
[1728995617428,0.99609773,153.59,153.53,31.6369]
[1728995617724,26.4262,153.64,153.53,31.6369]
[1728995617924,6.2960859,153.63,153.53,31.6369]
[1728995618124,0.9960859,153.62,153.53,31.6369]
[1728995618318,0.9960859,153.61,153.58,3.2563]
[1728995618524,0.9960859,153.61,153.53,31.6369]
[1728995618722,0.9960859,153.6,153.53,31.6369]
[1728995618919,3.2558,153.61,153.57,3.2566]
[1728995619122,0.99602318,153.6,153.57,3.2566]
[1728995619521,5.3,153.64,153.59,3.2562]
[1728995619728,0.99595322,153.63,153.59,3.2562]
[1728995620126,0.99595322,153.63,153.53,31.6369]
[1728995620724,0.99595322,153.63,153.57,3.2564]
[1728995620725,3.2561,153.6,153.57,3.2564]
[1728995621434,3.2558,153.61,153.56,3.2568]
[1728995621636,30.33,153.64,153.53,31.6369]
[1728995621831,0.99589995,153.63,153.53,31.6369]
[1728995622231,3.2557,153.62,153.53,31.6369]
[1728995622434,0.99589995,153.61,153.53,31.6369]
[1728995622732,0.99589995,153.61,153.58,3.2563]
[1728995623041,3.2561,153.6,153.53,31.6369]
[1728995623337,5.3,153.64,153.58,3.2563]
[1728995623536,3.2557,153.62,153.58,3.2563]
[1728995623731,0.99586456,153.61,153.58,3.2563]
[1728995624129,0.99586456,153.61,153.6,3.256]
[1728995624436,3.2551,153.64,153.6,3.256]
[1728995624631,0.9957114,153.63,153.6,3.256]
[1728995625337,4.2511114,153.63,153.6,3.256]
[1728995625537,0.99573899,153.62,153.6,3.256]
[1728995626337,3.2554,153.63,153.6,3.256]
[1728995626636,0.99573804,153.62,153.58,1.3985]
[1728995627135,4.30987119,153.62,153.58,1.3985]
[1728995627332,4.25153804,153.61,153.58,4.6547]
[1728995627528,0.99585543,153.6,153.58,4.6547]
[1728995627733,0.99585543,153.6,153.58,1.3985]
[1728995627929,15.64,153.59,153.54,1.3389]
[1728995628137,6.5096,153.66,153.5,1.3809]
[1728995628138,15.64,153.57,153.5,1.3809]
[1728995628333,0.99607108,153.56,153.5,1.3809]
[1728995628531,3.2574,153.54,153.51,3.2577]
[1728995628737,15.64,153.57,153.5,1.3809]
[1728995628937,0.99617614,153.56,153.5,1.3809]
[1728995629236,4.26632502,153.56,153.5,4.6389]
[1728995629427,0.99617614,153.55,153.5,1.3809]
[1728995629635,24.27694082,153.58,153.51,1.3389]
[1728995629938,3.2568,153.56,153.53,3.2573]
[1728995631239,5.3,153.58,153.52,25.04]
[1728995631731,3.2563,153.59,153.56,3.2568]
[1728995631935,5.3,153.62,153.53,5.3]
[1728995632137,0.99597682,153.61,153.53,5.3]
[1728995632339,4.25177682,153.61,153.58,3.2564]
[1728995632641,5.3,153.62,153.54,26.365]
[1728995632836,3.2556,153.62,153.54,26.365]
[1728995633241,3.2555,153.63,153.57,3.2566]
[1728995633441,5.3,153.65,153.54,26.365]
[1728995633637,0.99570087,153.64,153.54,26.365]
[1728995633952,5.3,153.65,153.54,26.365]
[1728995633953,4.21947521,153.63,153.54,26.365]
[1728995634235,3.22377166,153.63,153.54,26.365]
[1728995634438,3.2556,153.62,153.59,3.2562]
[1728995635039,3.18695648,153.63,153.54,26.365]
[1728995635040,3.2554,153.63,153.6,3.2559]
[1728995635245,3.2554,153.63,153.57,30.34]
[1728995635544,3.26384482,153.64,153.57,5.3]
[1728995635744,3.2559,153.61,153.57,5.3]
[1728995635935,3.25472247,153.64,153.57,5.3]
[1728995636137,0.99569043,153.63,153.57,5.3]
[1728995636338,3.31684936,153.64,153.57,5.3]
[1728995636537,5.3,153.67,153.58,1.4105]
[1728995636743,3.2555,153.63,153.59,3.256]
[1728995637143,3.2555,153.63,153.58,1.4105]
[1728995637343,3.1972851,153.64,153.6,3.2558]
[1728995637344,3.2552,153.64,153.6,3.2558]
[1728995638440,3.255,153.65,153.62,3.2555]
[1728995638633,5.3,153.67,153.58,2.726]
[1728995638840,0.99550359,153.66,153.58,2.726]
[1728995639140,5.3,153.68,153.62,3.2554]
[1728995639342,0.99550374,153.67,153.62,3.2554]
[1728995640047,3.2549,153.65,153.62,3.2554]
[1728995640247,5.3,153.68,153.58,2.726]
[1728995640447,0.99551752,153.67,153.58,2.726]
[1728995640948,30.34,153.68,153.58,2.726]
[1728995641147,0.99562039,153.66,153.58,2.726]
[1728995641343,0.99562039,153.65,153.58,2.726]
[1728995641546,3.2554,153.63,153.6,3.2558]
[1728995641944,3.2556,153.62,153.59,3.2562]
[1728995642147,3.23888983,153.64,153.58,1.4105]
[1728995642340,30.34,153.68,153.58,1.4105]
[1728995642546,3.2551,153.65,153.59,3.256]
[1728995642846,30.34,153.68,153.58,1.4105]
[1728995643049,0.99562147,153.67,153.58,1.4105]
[1728995643348,0.99562147,153.67,153.61,3.2556]
[1728995643553,0.99562147,153.67,153.59,25.04]
[1728995643854,2.6521,153.71,153.64,3.255]
[1728995644044,6.2954022,153.7,153.62,25.04]
[1728995644243,0.9954022,153.69,153.62,25.04]
[1728995644452,4.2496022,153.69,153.65,3.2547]
[1728995644750,0.99538131,153.68,153.62,27.7543]
[1728995645054,98.62714204,153.75,153.66,3.2546]
[1728995645055,3.2541,153.69,153.66,3.2546]
[1728995645246,5.3,153.72,153.62,27.7543]
[1728995645448,0.99523556,153.71,153.65,25.04]
[1728995645848,0.99523556,153.71,153.63,5.3]
[1728995646042,3.2541,153.69,153.65,3.2548]
[1728995646251,3.2541,153.69,153.62,27.7543]
[1728995646448,5.3,153.72,153.63,5.3]
[1728995646750,0.99524976,153.71,153.63,5.3]
[1728995647147,3.2544,153.68,153.64,3.2551]
[1728995647454,3.31566332,153.67,153.62,1.3602]
[1728995647649,30.34,153.72,153.62,1.3602]
[1728995647855,3.2542,153.69,153.62,4.6157]
[1728995648158,0.99542144,153.68,153.62,1.3602]
[1728995648352,0.99542144,153.67,153.62,1.3602]
[1728995648553,0.99542144,153.67,153.59,5.3]
[1728995648554,3.230997,153.67,153.59,5.3]
[1728995648754,0.99552343,153.66,153.59,5.3]
[1728995648951,6.50237898,153.65,153.61,3.2556]
[1728995649155,3.24727898,153.65,153.59,5.3]
[1728995649349,6.6588,153.68,153.58,8.0056]
[1728995649551,0.99559085,153.67,153.6,3.2558]
[1728995649753,4.21591317,153.67,153.6,3.2558]
[1728995650048,0.99559085,153.66,153.58,2.7056]